[Event "*** Titled Tuesday Blitz"]
[Site "Chess.com"]
[Date "2021.02.16"]
[Round "1"]
[White "Zq1"]
[Black "politeplayer"]
[Result "1/2-1/2"]
[WhiteElo "2523"]
[BlackElo "2207"]
[TimeControl "180+1"]
[EndTime "10:07:45 PST"]
[Termination "Game drawn by agreement"]

1. Nf3 {[%clk 0:03:00.9]} 1... g6 {[%clk 0:02:58.6]} 2. c4 {[%clk 0:03:00.2]}
2... Bg7 {[%clk 0:02:58.3]} 3. Nc3 {[%clk 0:03:00.1]} 3... d6 {[%clk 0:02:57.9]}
4. d4 {[%clk 0:02:59.8]} 4... Nf6 {[%clk 0:02:57.4]} 5. e4 {[%clk 0:02:59.4]}
5... O-O {[%clk 0:02:56.9]} 6. Be2 {[%clk 0:02:59.6]} 6... e5 {[%clk 0:02:57.2]}
7. O-O {[%clk 0:02:58.9]} 7... Nc6 {[%clk 0:02:57.4]} 8. d5 {[%clk 0:02:58.9]}
8... Ne7 {[%clk 0:02:57.8]} 9. Ne1 {[%clk 0:02:58.7]} 9... Nd7 {[%clk
0:02:57.1]} 10. Be3 {[%clk 0:02:58.6]} 10... f5 {[%clk 0:02:56.5]} 11. f3 {[%clk
0:02:59.1]} 11... f4 {[%clk 0:02:56.1]} 12. Bf2 {[%clk 0:02:59.4]} 12... g5
{[%clk 0:02:55.9]} 13. Nb5 {[%clk 0:02:59.2]} 13... Nf6 {[%clk 0:02:41.8]} 14.
Nxa7 {[%clk 0:02:58.3]} 14... Bd7 {[%clk 0:02:41.9]} 15. Nb5 {[%clk 0:02:58.2]}
15... Rf7 {[%clk 0:02:32.8]} 16. Nc3 {[%clk 0:02:57.8]} 16... Bf8 {[%clk
0:02:31.4]} 17. c5 {[%clk 0:02:56.6]} 17... Rg7 {[%clk 0:02:24.4]} 18. g4 {[%clk
0:02:50]} 18... h5 {[%clk 0:02:10.8]} 19. h3 {[%clk 0:02:50]} 19... Rh7 {[%clk
0:02:06.3]} 20. Kg2 {[%clk 0:02:44.7]} 20... hxg4 {[%clk 0:02:05.3]} 21. hxg4
{[%clk 0:02:41.9]} 21... Ng6 {[%clk 0:01:56.1]} 22. Nd3 {[%clk 0:02:40]} 22...
Nh4+ {[%clk 0:01:45.6]} 23. Bxh4 {[%clk 0:02:39.1]} 23... Rxh4 {[%clk
0:01:38.9]} 24. Rh1 {[%clk 0:02:35.6]} 24... Rxh1 {[%clk 0:01:20.5]} 25. Qxh1
{[%clk 0:02:28]} 25... Qe7 {[%clk 0:01:05.4]} 26. b4 {[%clk 0:02:19.4]} 26...
Kf7 {[%clk 0:00:56.7]} 27. a4 {[%clk 0:02:12]} 27... Bg7 {[%clk 0:00:55.2]} 28.
Qg1 {[%clk 0:02:09.4]} 28... Rh8 {[%clk 0:00:53.1]} 29. Qf2 {[%clk 0:02:08.6]}
29... c6 {[%clk 0:00:44]} 30. dxc6 {[%clk 0:01:56.3]} 30... Bxc6 {[%clk
0:00:32.5]} 31. b5 {[%clk 0:01:53.7]} 31... Bd7 {[%clk 0:00:32.8]} 32. cxd6
{[%clk 0:01:51.7]} 32... Qxd6 {[%clk 0:00:30.7]} 33. Qc5 {[%clk 0:01:51]} 33...
Qxc5 {[%clk 0:00:22.5]} 34. Nxc5 {[%clk 0:01:50.4]} 34... Rc8 {[%clk 0:00:22.9]}
35. Nxd7 {[%clk 0:01:49.5]} 35... Rxc3 {[%clk 0:00:15.7]} 36. Nxe5+ {[%clk
0:01:48.6]} 36... Ke6 {[%clk 0:00:15.4]} 37. Nd3 {[%clk 0:01:15.3]} 37... Nxg4
{[%clk 0:00:12.9]} 38. fxg4 {[%clk 0:00:57.1]} 38... Rxd3 {[%clk 0:00:12.7]} 39.
Bxd3 {[%clk 0:00:51.3]} 39... Bxa1 {[%clk 0:00:11.5]} 40. a5 {[%clk 0:00:42.4]}
40... Bc3 {[%clk 0:00:10.5]} 41. Bc4+ {[%clk 0:00:41]} 41... Ke5 {[%clk
0:00:09.6]} 42. a6 {[%clk 0:00:28.4]} 42... bxa6 {[%clk 0:00:07.9]} 43. b6
{[%clk 0:00:26.3]} 43... Bd4 {[%clk 0:00:07.7]} 44. b7 {[%clk 0:00:25]} 44...
Ba7 {[%clk 0:00:07.8]} 45. Bxa6 {[%clk 0:00:24.5]} 45... Kxe4 {[%clk 0:00:07.6]}
46. Bb5 {[%clk 0:00:24.4]} 46... f3+ {[%clk 0:00:07.7]} 47. Kg3 {[%clk
0:00:23.1]} 47... Bb8+ {[%clk 0:00:07.7]} 48. Kf2 {[%clk 0:00:22.2]} 48... Ba7+
{[%clk 0:00:07.5]} 49. Kf1 {[%clk 0:00:22]} 49... Kf4 {[%clk 0:00:06.8]} 50. Bd7
{[%clk 0:00:22.5]} 50... Kg3 {[%clk 0:00:06.1]} 51. Bf5 {[%clk 0:00:22]} 51...
Bb8 {[%clk 0:00:05.2]} 52. Be6 {[%clk 0:00:20.9]} 1/2-1/2

[Event "*** Titled Tuesday Blitz"]
[Site "Chess.com"]
[Date "2021.02.16"]
[Round "1"]
[White "krzyzan94"]
[Black "ILoveMauritania"]
[Result "1-0"]
[WhiteElo "2754"]
[BlackElo "2400"]
[TimeControl "180+1"]
[EndTime "10:07:47 PST"]
[Termination "krzyzan94 won on time"]

1. e4 {[%clk 0:02:59.9]} 1... e5 {[%clk 0:02:58.4]} 2. Nf3 {[%clk 0:02:59.9]}
2... Nc6 {[%clk 0:02:58.8]} 3. Bb5 {[%clk 0:02:57.8]} 3... a6 {[%clk 0:02:58.5]}
4. Ba4 {[%clk 0:02:57.6]} 4... Nf6 {[%clk 0:02:57.3]} 5. O-O {[%clk 0:02:57.5]}
5... Be7 {[%clk 0:02:57.5]} 6. d3 {[%clk 0:02:52.8]} 6... b5 {[%clk 0:02:55.8]}
7. Bb3 {[%clk 0:02:52.8]} 7... O-O {[%clk 0:02:56.4]} 8. a3 {[%clk 0:02:49.7]}
8... Bb7 {[%clk 0:02:56.6]} 9. Nc3 {[%clk 0:02:48.5]} 9... h6 {[%clk 0:02:51.9]}
10. Nd5 {[%clk 0:02:43.7]} 10... d6 {[%clk 0:02:47.8]} 11. Be3 {[%clk
0:02:36.5]} 11... Na5 {[%clk 0:02:38.5]} 12. Ba2 {[%clk 0:02:29.1]} 12... c5
{[%clk 0:02:35.8]} 13. b4 {[%clk 0:02:25]} 13... cxb4 {[%clk 0:02:32.9]} 14.
axb4 {[%clk 0:02:25.9]} 14... Nc6 {[%clk 0:02:27.7]} 15. Qd2 {[%clk 0:02:20.2]}
15... Na7 {[%clk 0:02:10.9]} 16. c4 {[%clk 0:02:19.4]} 16... Nxd5 {[%clk
0:02:08.4]} 17. exd5 {[%clk 0:02:14.6]} 17... Nc8 {[%clk 0:02:06.7]} 18. Rac1
{[%clk 0:02:03.7]} 18... Nb6 {[%clk 0:02:03.5]} 19. Rfe1 {[%clk 0:01:52.8]}
19... Na4 {[%clk 0:01:51.6]} 20. h3 {[%clk 0:01:30]} 20... Rc8 {[%clk
0:01:48.2]} 21. Nh2 {[%clk 0:01:26.7]} 21... f5 {[%clk 0:01:44.6]} 22. f4 {[%clk
0:01:24.9]} 22... Kh8 {[%clk 0:01:29]} 23. fxe5 {[%clk 0:01:20.8]} 23... dxe5
{[%clk 0:01:29.9]} 24. Bxh6 {[%clk 0:01:09.9]} 24... f4 {[%clk 0:00:59.7]} 25.
Bxg7+ {[%clk 0:01:05.7]} 25... Kxg7 {[%clk 0:00:57.5]} 26. Rxe5 {[%clk
0:01:06.6]} 26... Bg5 {[%clk 0:00:53.8]} 27. c5 {[%clk 0:00:56.5]} 27... Qf6
{[%clk 0:00:49.4]} 28. Ng4 {[%clk 0:00:56]} 28... Qg6 {[%clk 0:00:44.2]} 29. d4
{[%clk 0:00:49.5]} 29... Rf5 {[%clk 0:00:39]} 30. Bb1 {[%clk 0:00:45.7]} 30...
f3 {[%clk 0:00:30.6]} 31. Qf2 {[%clk 0:00:42.3]} 31... Bxc1 {[%clk 0:00:25.3]}
32. Bxf5 {[%clk 0:00:41.4]} 32... Qf7 {[%clk 0:00:16.2]} 33. Bxc8 {[%clk
0:00:40.2]} 33... Bxc8 {[%clk 0:00:17.1]} 34. gxf3 {[%clk 0:00:35.2]} 34... Nc3
{[%clk 0:00:15.9]} 35. d6 {[%clk 0:00:33.4]} 35... Bxg4 {[%clk 0:00:15]} 36. Re7
{[%clk 0:00:27.8]} 36... Be6 {[%clk 0:00:12.7]} 37. Qe1 {[%clk 0:00:20.5]} 37...
Bg5 {[%clk 0:00:06.1]} 38. Rxf7+ {[%clk 0:00:18]} 38... Kxf7 {[%clk 0:00:05.6]}
39. Qxc3 {[%clk 0:00:18.3]} 39... Bc4 {[%clk 0:00:03.8]} 40. Qa3 {[%clk
0:00:17.8]} 40... Bf6 {[%clk 0:00:03.6]} 41. Qe3 {[%clk 0:00:16.5]} 41... a5
{[%clk 0:00:01.7]} 42. d7 {[%clk 0:00:14.8]} 42... axb4 {[%clk 0:00:01.3]} 43.
Qe8+ {[%clk 0:00:14.3]} 43... Kg7 {[%clk 0:00:01.1]} 44. d8=Q {[%clk 0:00:15.2]}
1-0

[Event "*** Titled Tuesday Blitz"]
[Site "Chess.com"]
[Date "2021.02.16"]
[Round "1"]
[White "nonsopolo1"]
[Black "Nbk90"]
[Result "1-0"]
[WhiteElo "2294"]
[BlackElo "2569"]
[TimeControl "180+1"]
[EndTime "10:07:48 PST"]
[Termination "nonsopolo1 won by checkmate"]

1. d4 {[%clk 0:02:59.3]} 1... d6 {[%clk 0:03:00.4]} 2. Bf4 {[%clk 0:02:58.8]}
2... g6 {[%clk 0:03:00.2]} 3. e3 {[%clk 0:02:57]} 3... Bg7 {[%clk 0:03:00.7]} 4.
c3 {[%clk 0:02:56.3]} 4... Nf6 {[%clk 0:03:00.7]} 5. h3 {[%clk 0:02:55.2]} 5...
O-O {[%clk 0:02:59.4]} 6. Nd2 {[%clk 0:02:54.5]} 6... Nbd7 {[%clk 0:02:58.9]} 7.
Ngf3 {[%clk 0:02:53.3]} 7... b6 {[%clk 0:02:59.3]} 8. Be2 {[%clk 0:02:52.4]}
8... Bb7 {[%clk 0:02:59.8]} 9. O-O {[%clk 0:02:51]} 9... Re8 {[%clk 0:02:58.9]}
10. Re1 {[%clk 0:02:47.4]} 10... e5 {[%clk 0:02:58.3]} 11. Bg5 {[%clk
0:02:40.8]} 11... h6 {[%clk 0:02:36.6]} 12. Bh4 {[%clk 0:02:39.8]} 12... Qe7
{[%clk 0:02:15.9]} 13. Nf1 {[%clk 0:02:26.8]} 13... Rad8 {[%clk 0:02:13.7]} 14.
a4 {[%clk 0:02:24.7]} 14... a5 {[%clk 0:02:11.6]} 15. Bb5 {[%clk 0:02:16.1]}
15... g5 {[%clk 0:02:06.7]} 16. Bg3 {[%clk 0:02:15.3]} 16... Ne4 {[%clk
0:02:04.8]} 17. Bh2 {[%clk 0:02:12.8]} 17... f5 {[%clk 0:02:03.4]} 18. N1d2
{[%clk 0:02:00.3]} 18... Rf8 {[%clk 0:01:44.8]} 19. Qb3+ {[%clk 0:01:53.1]}
19... Kh8 {[%clk 0:01:41.7]} 20. Rad1 {[%clk 0:01:43.8]} 20... g4 {[%clk
0:01:22.8]} 21. Nxe4 {[%clk 0:01:35.7]} 21... gxf3 {[%clk 0:01:21.3]} 22. Ng3
{[%clk 0:01:28.3]} 22... fxg2 {[%clk 0:01:16.2]} 23. Qc2 {[%clk 0:01:21.1]}
23... Qe6 {[%clk 0:00:52.8]} 24. Bd3 {[%clk 0:01:11.8]} 24... f4 {[%clk
0:00:39.8]} 25. exf4 {[%clk 0:01:06]} 25... Rxf4 {[%clk 0:00:35]} 26. Nf5 {[%clk
0:01:01]} 26... Rf3 {[%clk 0:00:26]} 27. Nh4 {[%clk 0:00:49.6]} 27... Rxh3
{[%clk 0:00:13.8]} 28. Bf5 {[%clk 0:00:47.9]} 28... Qf6 {[%clk 0:00:13]} 29.
Ng6+ {[%clk 0:00:46.4]} 29... Kg8 {[%clk 0:00:13.1]} 30. Bxh3 {[%clk 0:00:46]}
30... Nf8 {[%clk 0:00:09.5]} 31. Nxf8 {[%clk 0:00:44.2]} 31... Rxf8 {[%clk
0:00:10.4]} 32. dxe5 {[%clk 0:00:42.2]} 32... Qh4 {[%clk 0:00:09.7]} 33. Be6+
{[%clk 0:00:27.5]} 33... Kh8 {[%clk 0:00:10.2]} 34. Rd4 {[%clk 0:00:23.5]} 34...
Qh5 {[%clk 0:00:06.7]} 35. Rg4 {[%clk 0:00:15.6]} 35... Bxe5 {[%clk 0:00:05.4]}
36. Rxe5 {[%clk 0:00:14.1]} 36... dxe5 {[%clk 0:00:04.4]} 37. Qg6 {[%clk
0:00:11.8]} 37... Qxg6 {[%clk 0:00:03.9]} 38. Rxg6 {[%clk 0:00:12.5]} 38... Rd8
{[%clk 0:00:02.3]} 39. Bxe5+ {[%clk 0:00:10.8]} 39... Kh7 {[%clk 0:00:02.4]} 40.
Rg7+ {[%clk 0:00:10.1]} 40... Kh8 {[%clk 0:00:03.3]} 41. Rd7# {[%clk 0:00:08.9]}
1-0

[Event "*** Titled Tuesday Blitz"]
[Site "Chess.com"]
[Date "2021.02.16"]
[Round "1"]
[White "VFernandezB"]
[Black "Gabrielian_Artur"]
[Result "0-1"]
[WhiteElo "2425"]
[BlackElo "2825"]
[TimeControl "180+1"]
[EndTime "10:07:50 PST"]
[Termination "Gabrielian_Artur won on time"]

1. d4 {[%clk 0:02:57.2]} 1... Nf6 {[%clk 0:02:59.6]} 2. Nf3 {[%clk 0:02:56.2]}
2... g6 {[%clk 0:02:58.4]} 3. c4 {[%clk 0:02:55.9]} 3... Bg7 {[%clk 0:02:58.2]}
4. g3 {[%clk 0:02:55.6]} 4... O-O {[%clk 0:02:57.6]} 5. Bg2 {[%clk 0:02:56]}
5... d5 {[%clk 0:02:57.5]} 6. O-O {[%clk 0:02:54.3]} 6... dxc4 {[%clk
0:02:57.6]} 7. Na3 {[%clk 0:02:54.3]} 7... c3 {[%clk 0:02:58]} 8. bxc3 {[%clk
0:02:55.2]} 8... c5 {[%clk 0:02:58.4]} 9. Bb2 {[%clk 0:02:45.6]} 9... Nc6 {[%clk
0:02:58]} 10. e3 {[%clk 0:02:41.4]} 10... Bf5 {[%clk 0:02:48.6]} 11. Nd2 {[%clk
0:02:35.2]} 11... Bd3 {[%clk 0:02:39]} 12. Re1 {[%clk 0:02:34.3]} 12... e5
{[%clk 0:02:38.7]} 13. Ndc4 {[%clk 0:02:16.4]} 13... e4 {[%clk 0:02:37.1]} 14.
f3 {[%clk 0:02:05.9]} 14... Re8 {[%clk 0:02:16.7]} 15. Bf1 {[%clk 0:01:36]}
15... Bxf1 {[%clk 0:02:05]} 16. Rxf1 {[%clk 0:01:36.9]} 16... Rb8 {[%clk
0:01:49.3]} 17. Nb5 {[%clk 0:01:30.5]} 17... Re6 {[%clk 0:01:23.4]} 18. dxc5
{[%clk 0:01:26.8]} 18... exf3 {[%clk 0:01:14.8]} 19. Qxf3 {[%clk 0:01:22.2]}
19... Qd3 {[%clk 0:01:13.9]} 20. Nbd6 {[%clk 0:01:18]} 20... Ne5 {[%clk
0:01:10]} 21. Nxe5 {[%clk 0:01:14.1]} 21... Rxe5 {[%clk 0:01:10.2]} 22. c4
{[%clk 0:00:45.8]} 22... Rxe3 {[%clk 0:01:08.2]} 23. Qf4 {[%clk 0:00:42.6]}
23... Re6 {[%clk 0:01:03.1]} 24. Nxf7 {[%clk 0:00:18.6]} 24... Rf8 {[%clk
0:00:57.6]} 25. Ng5 {[%clk 0:00:16.7]} 25... Re2 {[%clk 0:00:56]} 26. Bxf6
{[%clk 0:00:15]} 26... Bxf6 {[%clk 0:00:51.6]} 27. Rf3 {[%clk 0:00:04.6]} 27...
Bd4+ {[%clk 0:00:51]} 28. Kh1 {[%clk 0:00:04.2]} 28... Rxf4 {[%clk 0:00:40.7]}
29. Rxd3 {[%clk 0:00:04.5]} 29... Rg4 {[%clk 0:00:41.2]} 30. Rad1 {[%clk
0:00:03.6]} 30... Rxg5 {[%clk 0:00:37]} 31. Rxd4 {[%clk 0:00:03.7]} 31... Rxc5
{[%clk 0:00:36.8]} 32. Rd8+ {[%clk 0:00:03.1]} 32... Kf7 {[%clk 0:00:36.5]} 33.
R8d7+ {[%clk 0:00:03.7]} 33... Re7 {[%clk 0:00:36.5]} 34. Rxe7+ {[%clk
0:00:03.7]} 34... Kxe7 {[%clk 0:00:36.6]} 35. Rd4 {[%clk 0:00:04]} 35... Ke6
{[%clk 0:00:35.9]} 36. Kg2 {[%clk 0:00:04.6]} 36... Ra5 {[%clk 0:00:35.3]} 37.
Rd2 {[%clk 0:00:03.9]} 37... Ra4 {[%clk 0:00:34.6]} 38. Rc2 {[%clk 0:00:04.4]}
38... Kd6 {[%clk 0:00:33.6]} 39. Kf3 {[%clk 0:00:04.4]} 39... Kc5 {[%clk
0:00:33]} 40. Rb2 {[%clk 0:00:02.3]} 40... b6 {[%clk 0:00:32.3]} 41. Kf4 {[%clk
0:00:02.5]} 41... Rxc4+ {[%clk 0:00:29.2]} 42. Kg5 {[%clk 0:00:03.4]} 42... Rd4
{[%clk 0:00:28.2]} 43. Kh6 {[%clk 0:00:03.2]} 43... Rd7 {[%clk 0:00:28.2]} 44.
g4 {[%clk 0:00:03.8]} 44... b5 {[%clk 0:00:27.4]} 45. h4 {[%clk 0:00:04.3]}
45... a5 {[%clk 0:00:27.8]} 46. Rc2+ {[%clk 0:00:04.5]} 46... Kb4 {[%clk
0:00:27.8]} 47. Rc8 {[%clk 0:00:05.4]} 47... Ka3 {[%clk 0:00:26.8]} 48. Rc2
{[%clk 0:00:05.3]} 48... b4 {[%clk 0:00:26.9]} 49. Rf2 {[%clk 0:00:04.6]} 49...
a4 {[%clk 0:00:26.9]} 50. g5 {[%clk 0:00:04.7]} 50... b3 {[%clk 0:00:26.9]} 51.
axb3 {[%clk 0:00:05.6]} 51... axb3 {[%clk 0:00:27.3]} 52. Rf8 {[%clk 0:00:01.9]}
52... Ra7 {[%clk 0:00:25.2]} 0-1

[Event "*** Titled Tuesday Blitz"]
[Site "Chess.com"]
[Date "2021.02.16"]
[Round "1"]
[White "Artyom_ChessMate"]
[Black "lelya96"]
[Result "1-0"]
[WhiteElo "2556"]
[BlackElo "2245"]
[TimeControl "180+1"]
[EndTime "10:07:50 PST"]
[Termination "Artyom_ChessMate won by resignation"]

1. e4 {[%clk 0:03:00.6]} 1... e5 {[%clk 0:02:59.4]} 2. Nf3 {[%clk 0:02:57.4]}
2... Nc6 {[%clk 0:02:58.7]} 3. Bb5 {[%clk 0:02:53.3]} 3... a6 {[%clk 0:02:57.8]}
4. Bxc6 {[%clk 0:02:53.3]} 4... dxc6 {[%clk 0:02:57.3]} 5. O-O {[%clk
0:02:54.2]} 5... Bg4 {[%clk 0:02:52.9]} 6. h3 {[%clk 0:02:54.2]} 6... h5 {[%clk
0:02:51.6]} 7. d3 {[%clk 0:02:54.4]} 7... Bd6 {[%clk 0:02:42.7]} 8. hxg4 {[%clk
0:02:47.5]} 8... hxg4 {[%clk 0:02:41.4]} 9. Ng5 {[%clk 0:02:48.1]} 9... f6
{[%clk 0:02:19.3]} 10. Qxg4 {[%clk 0:02:46.5]} 10... fxg5 {[%clk 0:02:17.6]} 11.
Bxg5 {[%clk 0:02:47.4]} 11... Nf6 {[%clk 0:02:17.3]} 12. Qe6+ {[%clk 0:02:42.8]}
12... Qe7 {[%clk 0:02:16.9]} 13. Qxe7+ {[%clk 0:02:42.8]} 13... Kxe7 {[%clk
0:02:17.8]} 14. Nd2 {[%clk 0:02:41.2]} 14... Rh5 {[%clk 0:02:16.4]} 15. Bxf6+
{[%clk 0:02:34.2]} 15... gxf6 {[%clk 0:02:16.2]} 16. g3 {[%clk 0:02:34.2]} 16...
Rah8 {[%clk 0:02:14.6]} 17. Kg2 {[%clk 0:02:34.2]} 17... Rh2+ {[%clk 0:02:13.8]}
18. Kf3 {[%clk 0:02:34.2]} 18... Bc5 {[%clk 0:02:11.1]} 19. Nc4 {[%clk
0:02:34.2]} 19... b5 {[%clk 0:02:04.1]} 20. Ne3 {[%clk 0:02:33.6]} 20... Bxe3
{[%clk 0:01:59.9]} 21. Kxe3 {[%clk 0:02:34.5]} 21... Ke6 {[%clk 0:01:59.8]} 22.
b4 {[%clk 0:02:33.5]} 22... f5 {[%clk 0:01:58.6]} 23. exf5+ {[%clk 0:02:31.3]}
23... Kxf5 {[%clk 0:01:58.5]} 24. a4 {[%clk 0:02:32.2]} 24... R8h6 {[%clk
0:01:56.6]} 25. Kf3 {[%clk 0:02:23.9]} 25... Rf6 {[%clk 0:01:47.1]} 26. axb5
{[%clk 0:01:56.6]} 26... cxb5 {[%clk 0:01:46.1]} 27. Ke3 {[%clk 0:01:56.5]}
27... Rc6 {[%clk 0:01:15.3]} 28. Ra2 {[%clk 0:01:43.2]} 28... Kg4 {[%clk
0:01:10.3]} 29. Rfa1 {[%clk 0:01:39.5]} 29... Rhh6 {[%clk 0:01:09.4]} 30. Ke4
{[%clk 0:01:33.9]} 30... Rhf6 {[%clk 0:01:01.2]} 31. Rf1 {[%clk 0:01:17.8]}
31... Rfd6 {[%clk 0:00:48.9]} 32. Kxe5 {[%clk 0:00:54.3]} 32... Re6+ {[%clk
0:00:42.1]} 33. Kd4 {[%clk 0:00:54.2]} 33... Kf3 {[%clk 0:00:42.1]} 34. c4
{[%clk 0:00:50]} 34... bxc4 {[%clk 0:00:33.1]} 35. dxc4 {[%clk 0:00:50.3]} 35...
Re4+ {[%clk 0:00:32.7]} 36. Kd5 {[%clk 0:00:50.8]} 36... Rcxc4 {[%clk
0:00:27.5]} 37. Ra3+ {[%clk 0:00:48.8]} 37... Kg2 {[%clk 0:00:26.8]} 38. Rd1
{[%clk 0:00:35.1]} 38... Kxf2 {[%clk 0:00:22.2]} 39. Rd2+ {[%clk 0:00:34]} 39...
Ke1 {[%clk 0:00:21.6]} 40. Rh2 {[%clk 0:00:26.9]} 40... Red4+ {[%clk 0:00:19.1]}
41. Ke5 {[%clk 0:00:26.9]} 41... Re4+ {[%clk 0:00:16.9]} 42. Kf5 {[%clk
0:00:27.2]} 42... Kf1 {[%clk 0:00:15.1]} 43. Ra1+ {[%clk 0:00:25.7]} 43... Re1
{[%clk 0:00:14.2]} 44. Rh1+ {[%clk 0:00:26.3]} 44... Kg2 {[%clk 0:00:12.9]} 45.
Rhxe1 {[%clk 0:00:27.2]} 45... Rxb4 {[%clk 0:00:12.9]} 46. Ra3 {[%clk
0:00:26.2]} 46... Rb5+ {[%clk 0:00:12.1]} 47. Re5 {[%clk 0:00:26.5]} 47... Rb4
{[%clk 0:00:09.8]} 48. g4 {[%clk 0:00:25.7]} 48... a5 {[%clk 0:00:08.5]} 49.
Re2+ {[%clk 0:00:25.7]} 49... Kf1 {[%clk 0:00:08.2]} 50. Rc2 {[%clk 0:00:26.6]}
50... Rb1 {[%clk 0:00:06.5]} 51. g5 {[%clk 0:00:23.6]} 51... Rb5+ {[%clk
0:00:06.3]} 52. Kf6 {[%clk 0:00:22.7]} 52... Rb6+ {[%clk 0:00:06.5]} 53. Kf7
{[%clk 0:00:23.2]} 1-0

[Event "*** Titled Tuesday Blitz"]
[Site "Chess.com"]
[Date "2021.02.16"]
[Round "1"]
[White "csati17"]
[Black "Ze-Pequeno"]
[Result "1-0"]
[WhiteElo "2599"]
[BlackElo "2294"]
[TimeControl "180+1"]
[EndTime "10:07:51 PST"]
[Termination "csati17 won by checkmate"]

1. c4 {[%clk 0:03:00.9]} 1... Nf6 {[%clk 0:02:56.3]} 2. Nc3 {[%clk 0:03:00.5]}
2... g6 {[%clk 0:02:56.4]} 3. e4 {[%clk 0:03:00.3]} 3... d6 {[%clk 0:02:56.3]}
4. g3 {[%clk 0:03:00.7]} 4... Bg7 {[%clk 0:02:56.8]} 5. Bg2 {[%clk 0:03:01.3]}
5... O-O {[%clk 0:02:56.7]} 6. Nge2 {[%clk 0:03:01.8]} 6... c5 {[%clk
0:02:55.7]} 7. O-O {[%clk 0:03:02.4]} 7... Nc6 {[%clk 0:02:55.8]} 8. d3 {[%clk
0:03:03]} 8... Ne8 {[%clk 0:02:50.3]} 9. Rb1 {[%clk 0:03:03.1]} 9... Nc7 {[%clk
0:02:47.2]} 10. Be3 {[%clk 0:03:03.1]} 10... Ne6 {[%clk 0:02:43.5]} 11. a3
{[%clk 0:03:03.2]} 11... Rb8 {[%clk 0:02:41]} 12. b4 {[%clk 0:03:03.2]} 12... b6
{[%clk 0:02:41.4]} 13. Qd2 {[%clk 0:02:58.5]} 13... Ncd4 {[%clk 0:02:32.9]} 14.
f4 {[%clk 0:02:53.9]} 14... Bb7 {[%clk 0:02:04.5]} 15. f5 {[%clk 0:02:41.5]}
15... Nxe2+ {[%clk 0:02:03.1]} 16. Nxe2 {[%clk 0:02:40.4]} 16... Nd4 {[%clk
0:01:58.6]} 17. g4 {[%clk 0:02:16.6]} 17... e6 {[%clk 0:01:49.1]} 18. Nxd4
{[%clk 0:01:39.3]} 18... cxd4 {[%clk 0:01:40.9]} 19. Bh6 {[%clk 0:01:36.4]}
19... Qh4 {[%clk 0:01:23.2]} 20. Bg5 {[%clk 0:01:14.8]} 20... Qxg4 {[%clk
0:01:22.8]} 21. h3 {[%clk 0:01:14.8]} 21... Qh5 {[%clk 0:01:22.4]} 22. f6 {[%clk
0:01:14.6]} 22... Bh8 {[%clk 0:01:19.3]} 23. h4 {[%clk 0:01:06.6]} 23... Qg4
{[%clk 0:01:14.5]} 24. Rf4 {[%clk 0:01:06.2]} 24... Qg3 {[%clk 0:01:14.3]} 25.
Qe2 {[%clk 0:00:30.3]} 25... Qe3+ {[%clk 0:01:05.4]} 26. Qxe3 {[%clk 0:00:30.5]}
26... dxe3 {[%clk 0:01:06.1]} 27. Re1 {[%clk 0:00:23.1]} 27... a5 {[%clk
0:00:56.5]} 28. Rxe3 {[%clk 0:00:22.9]} 28... axb4 {[%clk 0:00:56.7]} 29. axb4
{[%clk 0:00:23.8]} 29... Ra8 {[%clk 0:00:57.3]} 30. Rf2 {[%clk 0:00:23]} 30...
Ra1+ {[%clk 0:00:54.4]} 31. Kh2 {[%clk 0:00:23]} 31... Rb1 {[%clk 0:00:54.4]}
32. b5 {[%clk 0:00:20.5]} 32... Ra8 {[%clk 0:00:52.4]} 33. d4 {[%clk 0:00:19]}
33... Rc1 {[%clk 0:00:46.5]} 34. Bf4 {[%clk 0:00:10.9]} 34... Bxf6 {[%clk
0:00:42.6]} 35. e5 {[%clk 0:00:09.8]} 35... Bxh4 {[%clk 0:00:25]} 36. Bxb7
{[%clk 0:00:06.6]} 36... Bxf2 {[%clk 0:00:24.8]} 37. Re2 {[%clk 0:00:06.3]}
37... Bg1+ {[%clk 0:00:24.1]} 38. Kg2 {[%clk 0:00:06]} 38... Raa1 {[%clk
0:00:21.6]} 39. exd6 {[%clk 0:00:05.2]} 39... Rd1 {[%clk 0:00:18.7]} 40. d7
{[%clk 0:00:04.6]} 40... Rxd4 {[%clk 0:00:18.3]} 41. Bd5 {[%clk 0:00:04.8]}
41... Rxd5 {[%clk 0:00:14.5]} 42. cxd5 {[%clk 0:00:04.8]} 42... Ra8 {[%clk
0:00:13.7]} 43. Bc7 {[%clk 0:00:04.8]} 43... exd5 {[%clk 0:00:13]} 44. Re8+
{[%clk 0:00:04.1]} 44... Kg7 {[%clk 0:00:12.7]} 45. Rxa8 {[%clk 0:00:04.3]}
45... Bc5 {[%clk 0:00:13.3]} 46. d8=Q {[%clk 0:00:04.8]} 46... Kh6 {[%clk
0:00:13.4]} 47. Qh4+ {[%clk 0:00:04.8]} 47... Kg7 {[%clk 0:00:12.8]} 48. Be5+
{[%clk 0:00:05]} 48... f6 {[%clk 0:00:13.7]} 49. Qxf6+ {[%clk 0:00:04.1]} 49...
Kh6 {[%clk 0:00:14.6]} 50. Qh4# {[%clk 0:00:04.7]} 1-0